[Event "45th FIDE Olympiad 2024"]
[Site "Budapest"]
[Date "2024.09.11"]
[Round "1.99"]
[White "Chan, Pui Yin Brandon"]
[Black "Antal, Gergely"]
[Result "0-1"]
[ECO "A28"]
[WhiteElo "2016"]
[BlackElo "2544"]
[Annotator "TA"]
[PlyCount "138"]
[EventDate "2024.09.05"]
[EventType "team-tourn"]
[EventCountry "HUN"]
[SourceTitle "playchess.com"]
[Source "ChessBase"]
[SourceQuality "1"]
[WhiteTeam "Hong Kong, China"]
[BlackTeam "Hungary B"]
[TimeControl "40/5400+30:1800+30"]

{[%evp 9,138,0,8,2,8,4,12,11,0,0,20,7,9,0,0,0,0,-37,-33,-29,0,-16,-16,-16,-7,-14,0,0,27,-57,-57,-56,-63,-53,-57,-71,-64,-81,-62,-140,-89,-97,-56,-252,-176,-198,-101,-110,-112,-103,-112,-137,-90,-109,-70,-58,-51,-57,-62,-83,-94,-84,-86,-118,-129,-192,-175,-234,-228,-246,-240,-254,-247,-243,-221,-257,-259,-259,-257,-602,-602,-681,-649,-685,-695,-679,-629,-651,-642,-664,-549,-595,-295,-517,0,-549,-377,-381,-301,-304,-311,-320,-212,-439,-303,-296,-205,-212,-234,-546,-537,-539,-285,-281,-242,-277,-212,-209,-201,-183,-175,-503,-502,-580,-959,-975,-926,-29971,-29972,-29971,-29974]} 1. c4 e5 2. Nc3 Nf6 3. Nf3 Nc6 4. e4 Bb4 5. d3 d6 6. a3 Bxc3+ 7. bxc3 O-O 8. Rb1 {The position is equal.} h6 9. g3 Nh7 10. Bg2 Rb8 11. Be3 b6 12. O-O Be6 13. h3 Ne7 14. Nh4 f5 15. exf5 Nxf5 16. Nxf5 Bxf5 17. f4 Qe8 18. g4 Bd7 19. Qe1 (19. f5 $11) 19... Bc6 $15 20. Qg3 Bxg2 21. Qxg2 exf4 22. Bxf4 Qg6 23. Qg3 Rbe8 24. Rb2 (24. Rbe1 $15) 24... Nf6 (24... Qf6 $142 {[%cal Og7g5] Hoping for ...g5!} 25. Rbf2 Qxc3) 25. Rg2 Nd7 26. Rf3 $2 (26. g5 $15) 26... Nc5 {[%cal Oc5d3]} 27. Rd2 Rf7 ({Black should try} 27... Rf6 $19 28. Be3 Nxd3 (28... Rxf3 29. Qxf3 Na4 30. Bf2 $17) 29. Rxf6 gxf6) 28. Be3 $17 Nd7 (28... Nxd3 29. Rxf7 Qxf7 (29... Kxf7 $2 {loses.} 30. Qf3+ Ke6 31. Qd5+ Kd7 32. Rxd3 $18) 30. Rxd3 $16) 29. Rxf7 Qxf7 30. Rf2 Qe6 ({Better is} 30... Qg6 31. Rd2 h5) 31. Bd2 Ne5 32. Bf4 $1 Ng6 33. Bd2 {Dodges Qe1+} a6 34. Kh2 {White is now going downhill.} Ne5 35. Bf4 Nd7 36. Qf3 Rf8 $1 37. Qg2 (37. Kg2 $17) 37... Nc5 $36 {[%mdl 2048] Black is on the roll.} 38. Qf1 (38. Re2 {might work better.} Qf7 39. Be3) 38... Qg6 $1 39. d4 Nd3 40. Rf3 Nxf4 41. Rxf4 {[%mdl 4096] Endgame. KQR-KQR} Qc2+ 42. Kh1 Rxf4 43. Qxf4 Qxc3 {KQ-KQ} 44. d5 $2 (44. Qe4 Qxh3+ (44... Qxa3 45. Qe8+ Kh7 46. Qe4+ Kg8 47. Qe8+ Kh7 48. Qe4+ g6 49. Qe7+ Kg8 50. Qe8+ Kg7 51. Qe7+ Kg8 52. Qe8+ Kg7 53. Qe7+ Kg8 $11) 45. Kg1) 44... Qxh3+ 45. Kg1 Qxa3 46. Qf5 Qg3+ 47. Kf1 Qe5 {( -> ...Qxf5+)} 48. Qc8+ Kh7 49. Qxc7 Qf4+ 50. Ke1 Qe3+ (50... a5 $142 51. g5 Qxg5 (51... hxg5 $2 52. Qxb6 Qc1+ 53. Kf2 $19)) 51. Kf1 $2 (51. Kd1 {was the only defense.}) 51... Qf4+ 52. Ke1 Qc1+ 53. Ke2 Qb2+ 54. Kd1 Qb3+ 55. Ke2 Qb4 56. Kd1 $2 (56. Qc8 Qb2+ 57. Kd3) 56... a5 57. Qd7 Qb1+ 58. Kd2 Qb2+ 59. Kd1 $2 (59. Kd3 {nothing else works.} Qb3+ 60. Kd4) 59... Qd4+ 60. Ke1 Qe5+ 61. Kd2 Kg6 (61... Qd4+ $2 62. Ke1 Qc3+ (62... Qxc4 $2 63. Qf5+ Kg8 64. Qe6+ Kh8 65. Qxd6 $19) 63. Kd1 Qd3+ (63... Qxc4 $2 64. Qf5+ Kg8 65. Qe6+ Kh8 66. g5 $19) 64. Ke1 $19) 62. Qc6 a4 63. Qxa4 Qd4+ 64. Kc2 Qxg4 {White must now prevent ...h5.} 65. Qe8+ $2 {[#]} (65. Qc6 Qg3 66. Qxb6) 65... Kh7 $1 {Strongly threatening ...Qg6+.} 66. Kc3 {[#]} h5 $1 {And now ...h4 would win.} 67. Qe3 h4 {...Qg3 would now be deadly.} 68. Qxb6 Qg3+ 69. Kb4 Qe1+ {Weighted Error Value: White=0.35/Black=0.21 (precise) .  Loses game:     	White=1     	---        Mistake:       	White=9     	Black=3      Inaccurate:     	White=2     	Black=9      OK:         	White=13    	Black=17     Best:        	White=9     	Black=5      Strong:       	White=1     	Black=4} 0-1

[Event "45th FIDE Olympiad 2024"]
[Site "Budapest"]
[Date "2024.09.11"]
[Round "1.100"]
[White "Papp, Gabor"]
[Black "Chan, Wang Ip Boris"]
[Result "1-0"]
[ECO "B12"]
[WhiteElo "2550"]
[BlackElo "2016"]
[Annotator "TA"]
[PlyCount "47"]
[EventDate "2024.09.05"]
[EventType "team-tourn"]
[EventCountry "HUN"]
[SourceTitle "playchess.com"]
[Source "ChessBase"]
[SourceQuality "1"]
[WhiteTeam "Hungary B"]
[BlackTeam "Hong Kong, China"]
[TimeControl "40/5400+30:1800+30"]

{[%evp 14,47,9,0,4,0,0,-20,74,73,76,76,71,62,68,77,97,120,108,117,113,122,131,62,219,222,270,250,240,251,286,312,381,276,254,239]} 1. e4 c6 2. d4 d5 3. e5 Bf5 4. h4 h5 5. c4 e6 6. Nc3 dxc4 7. Bxc4 Nd7 8. Nge2 Be7 9. Ng3 {Hoping for Nxf5.} Bg6 {[%cal Od8b6]} 10. Be2 c5 (10... Qb6 $11 {keeps the balance.}) 11. d5 $1 $16 (11. Nxh5 $2 Bxh5 12. Bxh5 cxd4 $19 (12... Bxh4 $2 13. Qf3 $18)) (11. Bxh5 cxd4 12. Bxg6 dxc3 $17) 11... Nxe5 12. Bf4 (12. Nxh5 $2 Bxh5 13. Bxh5 exd5 $17 (13... Bxh4 14. Qa4+ Kf8 15. Qxh4 $14)) 12... Bf6 13. Qa4+ (13. Nxh5 $2 Rxh5 14. d6 Qb6 $19 (14... Rxh4 15. Rxh4 Bxh4 16. Bxe5 $11)) 13... Kf8 $1 (13... Qd7 $2 14. Bb5 Nd3+ 15. Ke2 $18 (15. Kf1 Rd8 $18)) 14. O-O-O $36 {[%mdl 2048] White is on the roll.} Ne7 15. dxe6 Qb6 16. Nge4 $1 {Black must now prevent Rd6. Active counter play!} Qxe6 {[#]} 17. Qxa7 $3 {[%mdl 512]} Qc8 (17... Nd3+ $2 18. Rxd3 Re8 19. Nxf6 (19. Nxc5 Qc8 $18) (19. Qxb7 Bxc3 20. Nxc3 Bxd3 $18) 19... gxf6 20. Qxb7 Bxd3 21. Bxd3 $18) 18. Qb6 (18. Nd6 $1 $16 {[%cal Rd6c8]} Nd3+ (18... Rxa7 19. Nxc8 Nxc8 20. Bxe5 $16) 19. Bxd3 Rxa7 20. Nxc8 Nxc8 21. Rhe1) 18... Nd7 $2 {[#] Black cannot hold the game after this.} (18... N5c6 $14 19. Nd6 (19. Qxc5 Ra5 $11) (19. Nxf6 Qf5 $11) 19... Qd8 20. Qxc5 Bxc3 21. Qxc3 Rxa2) 19. Qd6 $1 $18 Bd4 20. Bb5 Nf6 21. Rhe1 Nxe4 22. Nxe4 Qf5 {[%cal Of8g8]} 23. Bd7 Qd5 {[#] ( -> ...Bxb2+)} 24. Nc3 $1 {Weighted Error Value: White=0.16 (very precise) /Black=0.31.  Mistake:       	White=1     	Black=2      OK:         	White=4     	Black=6      Strong:       	White=4     	Black=1      Brilliant:      	White=1     	---} ({Not} 24. Qxd5 Nxd5 25. Bd6+ Kg8 26. Bxc5 (26. Nxc5 $2 {loses.} Bxf2 27. Nxb7 Bxe1 $19) 26... Bxc5 27. Rxd5 (27. Nxc5 Nf6 $14) 27... Bb4 $14) 1-0

[Event "45th FIDE Olympiad 2024"]
[Site "Budapest"]
[Date "2024.09.11"]
[Round "1.101"]
[White "Demchenko, Anton"]
[Black "Pg, Md Omar Ak Hafizon"]
[Result "1-0"]
[ECO "B43"]
[WhiteElo "2597"]
[BlackElo "2159"]
[Annotator "TA"]
[PlyCount "65"]
[EventDate "2024.09.05"]
[EventType "team-tourn"]
[EventCountry "HUN"]
[SourceTitle "playchess.com"]
[Source "ChessBase"]
[SourceQuality "1"]
[WhiteTeam "Slovenia"]
[BlackTeam "Brunei Darussalam"]
[WhiteTeamCountry "SLO"]
[TimeControl "40/5400+30:1800+30"]

{[%evp 12,65,32,26,50,14,90,100,97,102,97,84,104,90,89,70,106,70,98,90,73,70,107,81,77,66,134,100,102,37,64,49,202,194,197,175,210,52,137,126,314,236,243,187,177,168,459,459,449,445,1956,1828,1899,523,826,512]} 1. e4 c5 2. Nf3 e6 3. d4 cxd4 4. Nxd4 a6 5. a3 Nf6 6. Nc3 Qc7 7. f4 d6 8. g4 {[%cal Bg2g4,Bg4g5][%mdl 32]} Nc6 (8... e5 $11 {remains equal.} 9. Nf5 h5) 9. g5 $16 Nd7 {White is better.} 10. Be3 b5 11. Nxc6 Qxc6 12. Qd4 Rb8 13. Be2 Qb6 14. Qd2 {White has more active pieces.} Qb7 15. h4 Nc5 16. Bf3 b4 17. axb4 Qxb4 18. O-O {[%cal Of4f5]} Bb7 ({Black should play} 18... Be7 $14) 19. Bd4 h6 20. Qf2 (20. g6 $16) 20... hxg5 $14 21. fxg5 {[%cal Of3h5] Bh5! would now be deadly.} f6 $2 ({Don't play} 21... Rxh4 22. Na2 (22. Qxh4 Qxd4+ 23. Rf2 Nd7 $11) 22... Qc4 23. Be2 $16 (23. Qxh4 Qxd4+ 24. Rf2 Nxe4 $17) (23. Qxh4 Qxd4+ 24. Rf2 Nxe4 $17)) (21... Be7 $1 $14) 22. gxf6 $18 gxf6 23. Bxf6 Rg8+ {[#]} 24. Bg5 $2 (24. Kh2 $1 $18) 24... Be7 {[#]} (24... Bg7 $1 $14 25. Rad1 Kd7) 25. Bg2 $1 $36 {[%mdl 2048] Hoping for Qf7+. White is really pushing.} Rxg5 $2 (25... Rf8 $16 26. Qe3 Rg8) 26. hxg5 $18 Kd7 {[%cal Ob8g8]} 27. Qe3 Rg8 28. Rf7 Ke8 $2 (28... Kd8 {was called for.}) 29. Raf1 {Threatens to win with Qf2. White is clearly winning.} Bxg5 30. Qf2 Bh6 {Prevents Rf8+} (30... Nd7 $142 31. Rxd7 (31. Re7+ Bxe7 32. Qf7+ Kd8 $18) 31... Be3 32. Qxe3 Kxd7 33. Rf7+ Kc8) 31. Qf6 {[%csl Gf7][%cal Rf6e7]} Bg5 32. Re7+ (32. Rf8+ $142 Kd7 33. Qf7+ Kc6 34. Rxg8 (34. Qxg8 Bd2 $18)) 32... Kd8 33. Rxb7+ {Weighted Error Value: White=0.36/Black=0.46.  Loses game:     	---       	Black=1      Mistake:       	White=2     	Black=6      Inaccurate:     	White=2     	Black=3      OK:         	White=8     	Black=6      Best:        	White=3     	Black=3      Strong:       	White=1     	---} 1-0

[Event "45th FIDE Olympiad 2024"]
[Site "Budapest"]
[Date "2024.09.11"]
[Round "1.102"]
[White "Yee, Soon Wei"]
[Black "Subelj, Jan"]
[Result "0-1"]
[ECO "B11"]
[WhiteElo "2219"]
[BlackElo "2498"]
[Annotator "RC"]
[PlyCount "33"]
[EventDate "2024.09.05"]
[EventType "team-tourn"]
[EventCountry "HUN"]
[SourceTitle "playchess.com"]
[Source "ChessBase"]
[SourceQuality "1"]
[WhiteTeam "Brunei Darussalam"]
[BlackTeam "Slovenia"]
[BlackTeamCountry "SLO"]
[TimeControl "40/5400+30:1800+30"]

1. e4 c6 2. Nc3 d5 3. Nf3 Bg4 4. h3 Bxf3 5. Qxf3 e6 6. d4 Nf6 7. Bd3 dxe4 8. Nxe4 Qxd4 9. c3 Qd8 10. Bg5 Be7 11. Bxf6 gxf6 12. O-O-O Nd7 13. Qh5 Qc7 14. Rhe1 f5 15. Bc4 fxe4 16. Bxe6 Qf4+ 17. Kb1 0-1

[Event "45th FIDE Olympiad 2024"]
[Site "Budapest"]
[Date "2024.09.11"]
[Round "1.103"]
[White "Sebenik, Matej"]
[Black "Lim Teck Guan, Rodney"]
[Result "1-0"]
[ECO "C02"]
[WhiteElo "2515"]
[BlackElo "1931"]
[Annotator "TA"]
[PlyCount "63"]
[EventDate "2024.09.05"]
[EventType "team-tourn"]
[EventCountry "HUN"]
[SourceTitle "playchess.com"]
[Source "ChessBase"]
[SourceQuality "1"]
[WhiteTeam "Slovenia"]
[BlackTeam "Brunei Darussalam"]
[WhiteTeamCountry "SLO"]
[TimeControl "40/5400+30:1800+30"]

{[%evp 11,63,16,16,12,22,6,67,75,73,83,88,89,173,194,219,225,230,167,195,203,537,85,227,183,296,286,291,293,264,244,518,538,548,564,559,559,510,506,740,686,687,671,1340,1278,1431,1415,1422,1401,1204,1239,3125,2549,29993,29985]} 1. e4 e6 2. d4 d5 3. e5 c5 4. c3 Nc6 5. Nf3 Nge7 6. Na3 Nf5 7. Nc2 Qb6 8. Bd3 Bd7 ({Better is} 8... cxd4 $11 9. cxd4 Bd7) 9. dxc5 $14 {White is slightly better.} Bxc5 10. O-O g6 11. Bg5 h6 (11... Be7 $16) 12. Bf6 $18 Rh7 {[#]} 13. g4 $1 Ng7 14. Qd2 {Strongly threatening h4.} Kf8 15. h4 {And now b4 would win.} h5 $2 (15... Ne8 {is a better chance.}) 16. g5 $2 (16. Ng5 $18 {has better winning chances.} Kg8 17. Nxh7 Kxh7 18. Rac1) 16... Nf5 {A mistake that costs the game.} (16... a5 $16) 17. Bxf5 exf5 (17... gxf5 $142 18. b4 Be7) 18. b4 ({Less strong is} 18. Qxd5 Be6 19. Qd2 Be7 $18) 18... Be7 19. Ne3 ({Don't do} 19. Qxd5 $6 Be6 20. Qd3 Rd8 $18) 19... Be6 20. Nxd5 Rd8 $2 (20... Qd8) 21. Nxb6 {A dynamic duo of knights.} Rxd2 22. Nxd2 axb6 23. f4 Ke8 {[%cal Bf8e8,Be8d7,Bd7c7][%mdl 32]} 24. Rfd1 Kd7 25. b5 Bc5+ 26. Kh2 Ne7 27. Ne4+ Kc7 28. Nxc5 bxc5 29. Bxe7 Rh8 30. Bxc5 Ra8 31. Rd6 {[#] Threatening mate with b6+.} Bd7 32. a4 {Weighted Error Value: White=0.31/Black=0.80.  Missed win:     	White=1     	---        Mistake:       	---       	Black=6      Inaccurate:     	---       	Black=1      OK:         	White=8     	Black=6      Best:        	White=2     	Black=1      Strong:       	White=1     	---} 1-0

[Event "45th FIDE Olympiad 2024"]
[Site "Budapest"]
[Date "2024.09.11"]
[Round "1.104"]
[White "Pg. Shahridin, Ak. Abdul Wafie"]
[Black "Lavrencic, Matic"]
[Result "0-1"]
[ECO "D00"]
[WhiteElo "1912"]
[BlackElo "2360"]
[Annotator "ChessBase"]
[PlyCount "77"]
[EventDate "2024.09.05"]
[EventType "team-tourn"]
[EventCountry "HUN"]
[SourceTitle "playchess.com"]
[Source "ChessBase"]
[SourceQuality "1"]
[WhiteTeam "Brunei Darussalam"]
[BlackTeam "Slovenia"]
[BlackTeamCountry "SLO"]
[TimeControl "40/5400+30:1800+30"]

1. d4 Nf6 2. Nc3 d5 3. Bf4 a6 4. e3 e6 5. Nf3 c5 6. dxc5 Bxc5 7. Bd3 Nc6 8. h3 O-O 9. O-O h6 10. a3 Re8 11. e4 d4 12. Ne2 e5 13. Bd2 Be6 14. Qc1 Rc8 15. Ng3 Bf8 16. Nh2 Nd7 17. Qd1 Nc5 18. b4 Na4 19. f4 exf4 20. Bxf4 Bd6 21. Qh5 Bxf4 22. Rxf4 Qg5 23. Qf3 Ne5 24. Qf2 Nb2 25. h4 Qd8 26. Qe2 Rc3 27. Raf1 Nbxd3 28. cxd3 Nxd3 29. Rf6 Nc1 30. Qd2 Rxg3 31. Qxc1 gxf6 32. Qxh6 d3 33. Nf3 Rg6 34. Qf4 Bg4 35. Nd2 Qd4+ 36. Kh1 Be2 37. Rc1 Rg4 38. Qh6 Qf2 39. Rg1 0-1

[Event "45th FIDE Olympiad 2024"]
[Site "Budapest"]
[Date "2024.09.11"]
[Round "1.105"]
[White "Mfune, Petros"]
[Black "Brkic, Ante"]
[Result "0-1"]
[ECO "B92"]
[WhiteElo "1986"]
[BlackElo "2642"]
[Annotator "TA"]
[PlyCount "106"]
[EventDate "2024.09.05"]
[EventType "team-tourn"]
[EventCountry "HUN"]
[SourceTitle "playchess.com"]
[Source "ChessBase"]
[SourceQuality "1"]
[WhiteTeam "Malawi"]
[BlackTeam "Croatia"]
[WhiteTeamCountry "MWI"]
[BlackTeamCountry "CRO"]
[TimeControl "40/5400+30:1800+30"]

{[%evp 19,106,-6,12,-10,0,-7,0,0,0,0,0,-28,-20,-44,-48,-71,-71,-78,-71,-57,-66,-78,-22,-29,-12,-30,-26,-29,-37,-141,0,-54,-54,-41,-33,-97,-99,-242,-91,-90,-97,-77,-73,-79,-76,-79,-45,-79,-61,-105,-100,-112,-101,-108,-106,-141,-105,-143,-140,-203,-183,-224,-228,-214,-204,-399,-421,-439,-431,-646,-624,-613,-403,-1435,-1432,-2427,-2218,-5508,-5501,-6083,-6079,-29980,-29981,-29981,-29982,-29984,-29985,-29993,-29994]} 1. e4 c5 2. Nf3 d6 3. d4 cxd4 4. Nxd4 Nf6 5. Nc3 a6 6. Be3 e5 7. Nb3 Be7 8. Be2 Be6 9. O-O O-O 10. Nd5 Nbd7 11. Nxe7+ Qxe7 12. Bf3 Rfd8 13. Qe2 {The position is equal.} Rac8 14. Rfd1 h6 15. Qd2 Nf8 16. Bb6 Rd7 17. Rac1 Ng6 18. g3 {Against Nh4} d5 19. exd5 Bxd5 20. Bxd5 Rxd5 ({Better is} 20... Nxd5 $17 21. Ba5 Ngf4) 21. Qe2 $11 Qe6 22. Rxd5 Nxd5 23. Ba5 Qf5 {[%cal Og6f4]} 24. c4 ({White should play} 24. f3 $15) 24... Nf6 ({Black should try} 24... Ngf4 $17 25. Qf1 (25. gxf4 Nxf4 26. Qf3 e4 $19) 25... Nh3+ 26. Kg2 Qe4+ (26... Ndf4+ 27. gxf4 Qg4+ 28. Kh1 $11) 27. f3 (27. Kxh3 Nf4+ 28. gxf4 Qf3+ 29. Kh4 Qxf4+ 30. Kh3 Qf3+ 31. Kh4 g5#) 27... Ne3+ (27... Nhf4+ $2 28. Kh1 $18) 28. Kh1 (28. Kxh3 $2 Qg6 $19) 28... Qf5) 25. f3 (25. Nd2 $11) 25... h5 $15 26. Nd2 h4 {Strongly threatening ...hxg3.} 27. Ne4 (27. Re1 $15) 27... hxg3 28. Nxf6+ (28. hxg3 $17 Nxe4 29. Qxe4) 28... Qxf6 $2 (28... gxf6 $19 {is more deadly.} 29. hxg3 e4) 29. hxg3 $17 Qg5 {[%csl LRc1,LRg3]} 30. Qe1 Nh4 31. Kf2 {[%cal Oa5d2] Threatens to win with Bd2!} Nf5 $36 {[%cal Bh4f5,Bf5d4,Bd4f3][%mdl 2080] Keeping White busy. Black is more active.} 32. g4 Nd4 {Hoping for ...Qf4.} 33. Qe3 {[#]} Nxf3 {White is on the road to losing.} 34. Qxg5 (34. Kxf3 e4+ 35. Ke2 Qxa5 36. Qxe4 g6 $17 (36... Qxa2 37. Qxb7 Re8+ 38. Kd3 $11)) (34. Rc3 Nd2) 34... Nxg5 {[%mdl 4096] Endgame. KRB-KRN} 35. b3 Kf8 36. Ke3 Ke8 37. Rh1 f6 38. Rh8+ Kd7 39. Rxc8 (39. Rh1 $17) 39... Kxc8 {KB-KN} 40. Be1 Kd7 41. Bh4 Nf7 42. Ke4 $2 (42. a4) 42... Ke6 $19 43. Be1 g6 44. Bh4 (44. Kf3 $142) 44... f5+ 45. gxf5+ gxf5+ 46. Kd3 (46. Kf3 $142) 46... f4 47. c5 Kd5 48. Be7 e4+ 49. Ke2 e3 {[#] ( -> ...Ne5)} 50. b4 Ke4 {Black mates.} 51. a4 f3+ 52. Ke1 Ne5 53. Kf1 e2+ {Weighted Error Value: White=0.72/Black=0.16 (very precise) .  Mistake:       	White=7     	Black=3      Inaccurate:     	White=6     	Black=1      OK:         	White=12    	Black=13     Best:        	---       	Black=5} 0-1

[Event "45th FIDE Olympiad 2024"]
[Site "Budapest"]
[Date "2024.09.11"]
[Round "1.106"]
[White "Martinovic, Sasa"]
[Black "Mwale, Joseph"]
[Result "1-0"]
[ECO "E49"]
[WhiteElo "2563"]
[BlackElo "2063"]
[Annotator "TA"]
[PlyCount "141"]
[EventDate "2024.09.05"]
[EventType "team-tourn"]
[EventCountry "HUN"]
[SourceTitle "playchess.com"]
[Source "ChessBase"]
[SourceQuality "1"]
[WhiteTeam "Croatia"]
[BlackTeam "Malawi"]
[WhiteTeamCountry "CRO"]
[BlackTeamCountry "MWI"]
[TimeControl "40/5400+30:1800+30"]

{[%evp 43,141,132,127,115,171,180,172,183,189,182,200,235,229,233,201,187,218,193,222,222,214,176,210,172,202,199,200,166,358,317,387,382,410,410,431,371,314,299,425,411,360,319,322,7,8,0,356,360,365,322,363,361,356,346,312,264,250,243,527,531,469,469,1444,1514,945,364,364,177,286,54,54,57,65,8,66,66,65,68,68,0,52,53,84,84,2268,2071,29983,29984,29984,29985,29985,29985,29985,29985,29975,29989,29989,29990,29991,29991]} 1. d4 e6 2. c4 Nf6 3. Nc3 Bb4 4. e3 d5 5. a3 Bxc3+ 6. bxc3 c5 7. cxd5 exd5 8. Bd3 Nc6 9. Ne2 O-O 10. f3 Re8 11. O-O Rb8 {E49: Nimzo-Indian: Rubinstein: 5 Bd3 d5 6 a3 Bxc3+ 7 bxc3.} 12. Nf4 $146 ({Predecessor:} 12. Ng3 h5 13. Ra2 b5 14. Raf2 a5 15. h3 b4 16. axb4 axb4 17. cxb4 c4 18. Bb1 Nxb4 19. e4 {1-0 Bordignon,A (2044)-Deepan Chakkravarthy,J (2435) Forni di Sopra op 14th 2023 (1)}) 12... b5 13. g4 a5 14. h4 b4 15. axb4 axb4 16. g5 Nd7 17. Nxd5 bxc3 18. Be4 Nf8 19. dxc5 Bh3 20. Rf2 Ne6 21. Nxc3 Nxc5 22. Qxd8 ({White should play} 22. Bxc6 $18 Qc7 23. Bxe8 (23. Rh2 Qxc6 24. Rxh3 Nb3 $16) 23... Qg3+ 24. Kh1 Qxf2) 22... Nxd8 $16 23. Rb2 Rxb2 (23... Rc8 $16 {keeps fighting.} 24. Ra8 Rxa8 25. Bxa8 Nd3) 24. Bxb2 $18 Nxe4 25. Nxe4 (25. fxe4 Ne6 $16) 25... Nc6 26. Kf2 Nb4 27. Bc3 Nd5 28. Bd4 Rc8 29. Ra7 Rc7 30. Ra5 Ne7 31. Nd6 Bd7 32. e4 Nc8 33. Ra8 h6 34. gxh6 gxh6 35. f4 Kh7 $2 (35... Rc6 {was called for.}) 36. f5 $18 (36. Nxf7 Bc6 $18) 36... Kg8 (36... Rc2+ 37. Ke3 Rc7 38. Be5 $18 (38. Nxf7 Bxf5 39. exf5 Rxf7 $18)) 37. Ke3 Kf8 38. Bf6 Rc6 39. e5 Rc1 40. Rb8 Rc7 (40... Rc2 {was necessary.} 41. Kf3 Kg8) 41. Kf4 Kg8 42. Kg4 Kh7 43. Kh5 $2 (43. Nxf7 Rc4+ 44. Kg3 (44. Kh5 Be8 $11) 44... Bxf5 $18) (43. Kg3 $18) 43... Ba4 $11 44. Kg4 $2 {[%mdl 8192]} (44. Nxc8 $2 Bd1#) (44. Rb1 $11 Nxd6 45. exd6) 44... Bd7 $18 45. h5 (45. Nxf7 Rc4+ 46. Kg3 (46. Kh5 Be8 $11) 46... Bxf5 $18) 45... Kg8 46. Kf4 Kf8 47. Ke4 Rc1 48. Kd4 Rd1+ 49. Ke3 Rc1 50. Kd2 Rc7 $2 (50... Rc5 {might work better.} 51. Ke3 Rc3+ 52. Kd4 Rc1) 51. Kd3 $18 Rc1 52. Rb7 Nxd6 (52... Rd1+ $142 53. Ke2 Rxd6) 53. Rxd7 $18 Ne8 54. Be7+ Kg8 55. Ra7 (55. Rd8 $142 Rd1+ 56. Ke4 Rxd8 57. Bxd8) 55... Rc8 (55... Re1 {is a better defense.}) 56. Ra1 $2 (56. Ba3 $18) 56... Ng7 $14 57. Ke4 Nxh5 58. f6 ({Better is} 58. Rg1+ $14 Kh7 59. e6 fxe6 60. f6 (60. fxe6 Re8 $11) 60... Nxf6+ 61. Bxf6) 58... Ng3+ (58... Rc4+ $11 59. Kd5 Rg4) 59. Kf4 $14 Ne2+ 60. Ke3 Nc3 $1 61. Kd4 (61. Rg1+ $14 Kh8 62. Rf1) 61... Nb5+ (61... Ne2+ $1 $11 62. Ke3 Nc3) 62. Ke4 (62. Kd3 $5 Rc3+ $8 63. Ke4 $11) 62... Nc3+ 63. Kf5 Nd5 $2 {[%mdl 8192] [#]} (63... Nb5 $16) 64. Rg1+ $1 $18 Kh8 65. e6 fxe6+ 66. Kxe6 Nf4+ 67. Kd7 Ra8 68. f7 Ra7+ 69. Kd6 Ra6+ 70. Ke5 Ne6 71. Rg6 ({Less strong is} 71. f8=R+ Nxf8 72. Bxf8 Ra8 $16) 1-0